Workbook

Sheet Worksheet
A1: Pasūtītājs: JVPI Pilsētsaimniecība
A2: Vien. reģ. Nr. 90001282486
A3: Pulkv.O.Kalpaka 16a, Jelgava
A5: Izpildītājs: Mītavas Elektra SIA
A6: Vien. reģ. Nr. 43603009810
A7: Jelgava, Vaļņu iela 8, LV-3001
A8: Līguma Nr. PIL/2-4/19/70
A9: Jelgavas pilsētas luksoforu objektu uzturēšana
A11: Akts Nr. 333/CSN/2020-02
A13: Par 2020. gada februāra mēnesī izpildītajiem darbiem
A14: Datums / Kods | B14: Pakalpojuma veids | C14: Mēr- vienība | D14: Daudzums | E14: Vienības cena EUR | F14: Kopā EUR (bez PVN)
A15: 24.02.2020. - 24.02.2020. | B15: Lielās ielas - Akadēmijas ielas krustojums , pasūtījuma nr: 95781
A16: 1 | B16: Demontāžas darbi
A17: 1.4 | B17: Luksofora balsta pamata demontāža | C17: gab. | D17: 2 | E17: 30.00 | F17: =ROUND(D17*E17,2) -> 60.00
A18: 1.7 | B18: Gājēju izsaukuma pogas demontāža | C18: gab. | D18: 2 | E18: 25.00 | F18: =ROUND(D18*E18,2) -> 50.00
A19: 2 | B19: Kabeļu montāžas darbi
A20: 2.4 | B20: Bruģa (flīzes) segumā demontāža, atjaunošana | C20: m2 | D20: 1 | E20: 75.00 | F20: =ROUND(D20*E20,2) -> 75.00
A21: 2.11 | B21: Kabeļa montāža (nomaiņa) balstā | C21: m | D21: 14 | E21: 1.60 | F21: =ROUND(D21*E21,2) -> 22.40
A22: 2.14 | B22: Signālkabeļa 7-19x2.5 gala apdare, pieslēgšana | C22: kompl. | D22: 2 | E22: 18.00 | F22: =ROUND(D22*E22,2) -> 36.00
A23: 2.15 | B23: Datu kabeļa gala apdare, pieslēgšana | C23: kompl. | D23: 2 | E23: 5.00 | F23: =ROUND(D23*E23,2) -> 10.00
A24: 2.16 | B24: Signālkabeļa spaiļu komplekta nomaiņa balstā, konsolē, vārtos | C24: kompl. | D24: 2 | E24: 25.00 | F24: =ROUND(D24*E24,2) -> 50.00
A25: 3 | B25: Luksoforu balstu uzturēšanas un montāžas darbi
A26: 3.1 | B26: Luksofora balsta montāža | C26: gab. | D26: 2 | E26: 50.00 | F26: =ROUND(D26*E26,2) -> 100.00
A27: 3.3 | B27: Luksofora balsta pamata montāža | C27: gab. | D27: 2 | E27: 30.00 | F27: =ROUND(D27*E27,2) -> 60.00
A28: 3.9 | B28: Datorizētās akustiskās gājēju izsaukuma pogas montāža | C28: gab. | D28: 2 | E28: 40.00 | F28: =ROUND(D28*E28,2) -> 80.00
A29: 4 | B29: Signālgalvu uzturēšanas un montāžas darbi
A30: 4.1 | B30: Transporta signālgalvas montāža uz balsta | C30: kompl. | D30: 1 | E30: 50.00 | F30: =ROUND(D30*E30,2) -> 50.00
A31: 4.6 | B31: Gājēju signālgalvas ar laika atskaites displeju montāža | C31: kompl. | D31: 2 | E31: 20.00 | F31: =ROUND(D31*E31,2) -> 40.00
A32: 7 | B32: Avārijas darbi
A33: 7.1 | B33: Luksofora balsta demontāža | C33: gab. | D33: 2 | E33: 50.00 | F33: =ROUND(D33*E33,2) -> 100.00
A34: 7.3 | B34: Signālgalvas demontāža | C34: gab. | D34: 3 | E34: 30.00 | F34: =ROUND(D34*E34,2) -> 90.00
A35: 8 | B35: Kabeļi un kabeļu piederumi
A36: 8.2 | B36: Signālkabelis Cu 7x2.5 | C36: m | D36: 10 | E36: 2.00 | F36: =ROUND(D36*E36,2) -> 20.00
A37: 8.5 | B37: Datu kabelis (5.cat) | C37: m | D37: 4 | E37: 0.30 | F37: =ROUND(D37*E37,2) -> 1.20
A38: 8.11 | B38: Signālkabeļa spaiļu komplekts (līdz 10 gab.) | C38: kompl. | D38: 4 | E38: 3.50 | F38: =ROUND(D38*E38,2) -> 14.00
A39: 9 | B39: Balsti un balstu piederumi
A40: 9.1 | B40: Luksofora balsts h=4m Technopali STP45-114-2 | C40: gab. | D40: 1 | E40: 70.00 | F40: =ROUND(D40*E40,2) -> 70.00
A41: 9.2 | B41: Luksofora balsts h=6m Technopali STP45-114-2 | C41: gab. | D41: 1 | E41: 80.00 | F41: =ROUND(D41*E41,2) -> 80.00
A42: 9.4 | B42: Luksofora balsta pamatne P-1 | C42: gab. | D42: 2 | E42: 35.00 | F42: =ROUND(D42*E42,2) -> 70.00
A43: 9.7 | B43: Balsta (konsoles) jumtiņš | C43: gab. | D43: 2 | E43: 3.00 | F43: =ROUND(D43*E43,2) -> 6.00
A44: 9.8 | B44: Datorizēta akustiska gājēju izsaukuma poga Langmatz EK533 | C44: gab. | D44: 2 | E44: 750.00 | F44: =ROUND(D44*E44,2) -> 1500.00
A45: 10 | B45: Signālgalvas un signālgalvu piederumi
A46: 10.6 | B46: Transporta signālgalva (3 lēcas, 300mm, LED 42V) Dynniq Peek Elite TLED | C46: gab. | D46: 1 | E46: 250.00 | F46: =ROUND(D46*E46,2) -> 250.00
A47: 10.9 | B47: Gājēju signālgalva ar sekunžu skaitītāju (3 lēcas, 200mm, LED 42V) Dynniq Peek Elite TLED | C47: gab. | D47: 2 | E47: 250.00 | F47: =ROUND(D47*E47,2) -> 500.00
A48: 28.02.2020. - 28.02.2020. | B48: Lielās ielas - Pētera ielas krustojums , pasūtījuma nr: 95813
A49: 1 | B49: Demontāžas darbi
A50: 1.2 | B50: Luksofora balsta demontāža | C50: gab. | D50: 1 | E50: 50.00 | F50: =ROUND(D50*E50,2) -> 50.00
A51: 1.4 | B51: Luksofora balsta pamata demontāža | C51: gab. | D51: 1 | E51: 30.00 | F51: =ROUND(D51*E51,2) -> 30.00
A52: 1.6 | B52: Signālgalvas demontāža | C52: gab. | D52: 1 | E52: 30.00 | F52: =ROUND(D52*E52,2) -> 30.00
A53: 1.7 | B53: Gājēju izsaukuma pogas demontāža | C53: gab. | D53: 1 | E53: 25.00 | F53: =ROUND(D53*E53,2) -> 25.00
A54: 2 | B54: Kabeļu montāžas darbi
A55: 2.11 | B55: Kabeļa montāža (nomaiņa) balstā | C55: m | D55: 4 | E55: 1.60 | F55: =ROUND(D55*E55,2) -> 6.40
A56: 2.14 | B56: Signālkabeļa 7-19x2.5 gala apdare, pieslēgšana | C56: kompl. | D56: 1 | E56: 18.00 | F56: =ROUND(D56*E56,2) -> 18.00
A57: 2.15 | B57: Datu kabeļa gala apdare, pieslēgšana | C57: kompl. | D57: 1 | E57: 5.00 | F57: =ROUND(D57*E57,2) -> 5.00
A58: 2.16 | B58: Signālkabeļa spaiļu komplekta nomaiņa balstā, konsolē, vārtos | C58: kompl. | D58: 2 | E58: 25.00 | F58: =ROUND(D58*E58,2) -> 50.00
A59: 3 | B59: Luksoforu balstu uzturēšanas un montāžas darbi
A60: 3.1 | B60: Luksofora balsta montāža | C60: gab. | D60: 1 | E60: 50.00 | F60: =ROUND(D60*E60,2) -> 50.00
A61: 3.3 | B61: Luksofora balsta pamata montāža | C61: gab. | D61: 1 | E61: 30.00 | F61: =ROUND(D61*E61,2) -> 30.00
A62: 3.8 | B62: Balsta jumtiņa nomaiņa | C62: gab. | D62: 1 | E62: 10.00 | F62: =ROUND(D62*E62,2) -> 10.00
A63: 3.9 | B63: Datorizētās akustiskās gājēju izsaukuma pogas montāža | C63: gab. | D63: 1 | E63: 40.00 | F63: =ROUND(D63*E63,2) -> 40.00
A64: 4 | B64: Signālgalvu uzturēšanas un montāžas darbi
A65: 4.6 | B65: Gājēju signālgalvas ar laika atskaites displeju montāža | C65: kompl. | D65: 1 | E65: 20.00 | F65: =ROUND(D65*E65,2) -> 20.00
A66: 4.12 | B66: Signālgalvas stiprinājuma kronšteina nomaiņa uz balsta | C66: gab. | D66: 1 | E66: 20.00 | F66: =ROUND(D66*E66,2) -> 20.00
A67: 8 | B67: Kabeļi un kabeļu piederumi
A68: 8.2 | B68: Signālkabelis Cu 7x2.5 | C68: m | D68: 4 | E68: 2.00 | F68: =ROUND(D68*E68,2) -> 8.00
A69: 8.11 | B69: Signālkabeļa spaiļu komplekts (līdz 10 gab.) | C69: kompl. | D69: 2 | E69: 3.50 | F69: =ROUND(D69*E69,2) -> 7.00
A70: 9 | B70: Balsti un balstu piederumi
A71: 9.1 | B71: Luksofora balsts h=4m Technopali STP45-114-2 | C71: gab. | D71: 1 | E71: 70.00 | F71: =ROUND(D71*E71,2) -> 70.00
A72: 9.4 | B72: Luksofora balsta pamatne P-1 | C72: gab. | D72: 1 | E72: 35.00 | F72: =ROUND(D72*E72,2) -> 35.00
A73: 9.7 | B73: Balsta (konsoles) jumtiņš | C73: gab. | D73: 1 | E73: 3.00 | F73: =ROUND(D73*E73,2) -> 3.00
A74: 10 | B74: Signālgalvas un signālgalvu piederumi
A75: 10.15 | B75: Signālgalvas stiprinājuma kronšteins | C75: gab. | D75: 1 | E75: 25.00 | F75: =ROUND(D75*E75,2) -> 25.00
D76: Kopā (bez PVN) EUR | F76: =SUM(F15:F75) -> 3867.00
D77: PVN 21% EUR | F77: =F76*0.21 -> 812.07
D78: Kopā ar PVN EUR | F78: =F76+F77 -> 4679.07
A80: Nodeva:
B81: paraksts
A82: Mītavas Elektra SIA
A83: Datums:
A86: Pieņēma:
B87: paraksts
A88: Kārlis Krūkliņš Satiksmes organizācijas inženieris
A89: Datums:
